bitfinex-derivatives/quotes_ETHF0:USTF0_20251118
["timestamp","ask_amount","ask_price","bid_price","bid_amount"]
[1763448736850,0.54425,2980.1,2980.0,0.3886]
[1763448737354,2.99759892,2980.2,2980.0,0.3886]
[1763448737950,2.45335892,2980.2,2980.0,0.3886]
[1763448738151,2.99759892,2980.2,2980.0,0.3886]
[1763448738356,2.99759892,2980.2,2980.0,0.143]
[1763448738948,2.45736379,2980.8,2980.1,0.2456]
[1763448738949,2.45335892,2980.3,2980.1,0.2456]
[1763448739144,2.99757892,2980.3,2980.1,0.2456]
[1763448739349,0.00400487,2980.8,2980.5,0.137]
[1763448739544,0.54813487,2980.8,2980.7,0.2435]
[1763448739755,0.00400487,2980.8,2980.7,0.24618673]
[1763448739956,0.54425,2980.2,2980.0,0.143]
[1763448740169,2.99754892,2980.5,2980.1,0.2435]
[1763448740455,2.99754892,2980.5,2980.0,0.143]
[1763448740456,0.54419,2980.5,2980.4,0.2435]
[1763448740656,2.99754892,2980.5,2980.4,0.2435]
[1763448740856,0.54421,2980.4,2980.0,0.143]
[1763448741057,0.54421,2980.4,2980.0,0.14551593]
[1763448741460,2.45335892,2980.5,2980.0,0.14551593]
[1763448741859,0.5442,2980.4,2980.3,0.2435]
[1763448742749,2.99754892,2980.5,2980.4,0.2435]
[1763448742950,2.45335892,2980.5,2980.4,0.2435]
[1763448743558,0.54813487,2980.8,2980.7,0.2435]
[1763448744063,0.00400487,2980.8,2980.7,0.2435]
[1763448744653,2.45736379,2980.8,2980.5,0.137]
[1763448744848,0.54414,2980.7,2980.5,0.137]
[1763448748251,0.54416,2980.6,2980.5,0.137]
[1763448749357,2.45736379,2980.8,2980.5,0.137]
[1763448749358,3.00149379,2980.8,2980.7,0.2435]
[1763448749559,0.00400487,2980.8,2980.7,0.2435]
[1763448749962,0.54414,2980.7,2980.5,0.137]
[1763448750265,2.45335892,2980.6,2980.5,0.137]
[1763448752465,2.45335892,2980.6,2980.5,0.3748]
[1763448753163,0.54425,2980.2,2980.0,0.14551593]
[1763448753364,2.45335892,2980.1,2980.0,0.38331593]
[1763448753665,0.54417,2980.6,2980.5,0.3801]
[1763448754372,0.54417,2980.6,2980.5,0.1423]
[1763448755657,0.54417,2980.6,2980.5,0.3801]
[1763448755852,0.00400487,2980.8,2980.7,0.2378]
[1763448756061,0.54416,2980.6,2980.5,0.3801]
[1763448756266,0.54416,2980.6,2980.5,0.1423]
[1763448756267,2.99751892,2980.6,2980.5,0.1423]
[1763448756860,2.99751892,2980.6,2980.5,0.3801]
[1763448757060,0.54416,2980.6,2980.5,0.3801]
[1763448757862,0.00400487,2980.8,2980.5,0.1423]
[1763448758062,0.54416,2980.6,2980.5,0.1423]
[1763448758464,2.99751892,2980.6,2980.5,0.1423]
[1763448759673,0.54425,2980.1,2980.0,0.14551593]
[1763448759857,2.45335892,2980.6,2980.0,0.38331593]
[1763448760061,2.99751892,2980.6,2980.5,0.1423]
[1763448760467,0.54425,2980.1,2980.0,0.14551593]
[1763448760866,0.54425,2980.1,2980.0,0.38331593]
[1763448761166,0.54423,2980.3,2980.2,0.2378]
[1763448762268,0.00400487,2980.8,2980.5,0.1423]
[1763448762772,0.54417,2980.6,2980.5,0.3801]
[1763448765469,0.54417,2980.6,2980.5,0.1423]
[1763448765969,0.54417,2980.6,2980.5,0.3801]
[1763448766272,0.00400487,2980.8,2980.5,0.1423]
[1763448766470,0.54415,2980.7,2980.5,0.1423]
[1763448766770,0.54415,2980.7,2980.6,0.2378]
[1763448767474,0.54813487,2980.8,2980.7,0.2378]
[1763448767674,0.54416,2980.7,2980.6,0.2378]
[1763448768372,0.00400487,2980.8,2980.5,0.3801]
[1763448768373,0.54416,2980.6,2980.5,0.3801]
[1763448770682,0.54814487,2980.8,2980.7,0.2378]
[1763448771676,0.54814487,2980.8,2980.5,1.34143352]
[1763448771677,0.54416,2980.6,2980.5,0.1423]
[1763448772078,0.54424,2980.2,2980.1,0.2378]
[1763448772277,0.54422,2980.4,2980.3,0.2378]
[1763448772985,0.54424,2980.2,2980.1,0.2378]
[1763448774982,0.54433,2979.7,2979.5,0.143]
[1763448775186,0.54435,2979.6,2979.5,0.143]
[1763448776091,2.81702739,2980.2,2979.5,0.38363435]
[1763448776486,0.54433,2979.7,2979.5,0.14583435]
[1763448776992,0.54433,2979.7,2979.6,0.2378]
[1763448777697,2.81702739,2980.2,2980.0,0.1424]
[1763448777894,0.54425,2980.1,2980.0,0.1424]
[1763448778595,0.54425,2980.1,2980.0,0.3706]
[1763448778794,1.18453346,2980.6,2980.5,0.3706]
[1763448778993,1.18853833,2980.8,2980.5,0.1424]
[1763448779194,0.54416,2980.6,2980.5,0.1424]
[1763448780405,0.54813487,2980.8,2980.7,0.2282]
[1763448780896,0.00400487,2980.8,2980.7,0.2282]
[1763448781096,0.54813487,2980.8,2980.7,0.2282]
[1763448781502,0.00400487,2980.8,2980.7,0.2282]
[1763448781704,0.54813487,2980.8,2980.7,0.2282]
[1763448781900,0.54415,2980.7,2980.5,0.1424]
[1763448782099,0.00400487,2980.8,2980.5,0.1424]
[1763448782403,0.54415,2980.7,2980.6,0.2282]
[1763448783193,0.54416,2980.6,2980.5,0.3706]
[1763448784409,0.00400487,2980.8,2980.5,0.1424]
[1763448784606,0.54416,2980.6,2980.5,0.3706]
[1763448784903,0.00400487,2980.8,2980.7,0.2282]
[1763448785300,0.54813487,2980.8,2980.7,0.2282]
[1763448786107,0.54416,2980.6,2980.5,0.1424]
[1763448786308,0.54415,2980.7,2980.6,0.2282]
[1763448786806,0.54415,2980.7,2980.5,0.1424]
[1763448786807,0.54416,2980.6,2980.5,0.1424]
[1763448787005,0.54416,2980.6,2980.5,0.3706]
[1763448788103,0.54416,2980.6,2980.5,0.1424]
[1763448788503,0.54416,2980.6,2980.5,0.3706]
[1763448789907,0.54813487,2980.8,2980.7,0.2282]
[1763448790302,0.08199679,2982.0,2980.8,9.363]
[1763448790505,0.68843,2983.0,2981.9,2.81702739]
[1763448790705,0.1447,2983.0,2982.2,1.80229701]
[1763448791100,0.1447,2983.0,2982.9,0.90344094]
[1763448791301,0.14765695,2983.0,2982.9,0.00345772]
[1763448792402,0.37725695,2983.0,2982.9,0.00345772]
[1763448792601,0.14765695,2983.0,2982.9,0.00345772]
[1763448793203,0.37725695,2983.0,2982.9,0.00345772]
[1763448793409,0.14765695,2983.0,2982.9,0.00345772]
[1763448795202,0.37725695,2983.0,2982.9,0.00345772]
[1763448795603,0.14765695,2983.0,2982.9,0.00345772]
[1763448796514,0.37725695,2983.0,2982.9,0.00345772]
[1763448797905,0.37725695,2983.0,2979.1,9.19907249]
[1763448797906,0.1447,2982.5,2981.8,0.90344094]
[1763448798111,0.1447,2982.5,2981.7,2.81702739]
[1763448798610,0.1447,2982.5,2981.7,3.08111946]
[1763448798913,0.1447,2982.5,2981.8,0.00503347]
[1763448799210,0.68852,2982.5,2981.8,0.00503347]
[1763448800201,0.1447,2982.5,2981.8,0.00503347]
[1763448801114,0.2029,2982.0,2981.8,0.00503347]
[1763448807616,0.3365,2981.9,2981.8,0.00503347]
[1763448809122,0.2029,2982.0,2981.8,0.00503347]
[1763448809516,0.1447,2982.5,2981.8,0.00503347]
[1763448809721,0.14765695,2983.0,2982.1,3.72046833]
[1763448809917,0.3103,2982.3,2982.1,0.90344094]
[1763448810114,0.2021,2982.0,2981.9,0.90344094]
[1763448810623,0.2021,2982.5,2981.9,6.0]
[1763448810823,0.2021,2982.5,2982.0,0.90344094]
[1763448811420,0.2021,2982.5,2982.1,0.90344094]
[1763448812020,0.3103,2982.2,2982.0,0.90344094]
[1763448812408,0.3103,2982.2,2981.8,1.19821349]
[1763448812409,0.2021,2982.0,2981.9,0.90344094]
[1763448815232,0.00295695,2983.0,2981.9,12.18002739]
[1763448815426,0.00295695,2983.0,2982.9,3.71565318]
[1763448816227,0.00295695,2983.0,2982.9,2.81702739]
[1763448817623,0.3103,2982.9,2982.8,0.89943825]
[1763448817821,0.3103,2982.9,2982.7,0.89943825]
[1763448818023,0.3103,2982.8,2982.7,0.89943825]
[1763448818420,0.2021,2983.0,2982.7,4.01519511]
[1763448818620,0.2021,2983.0,2982.8,1.19816772]
[1763448818922,0.3103,2982.9,2982.8,0.22065055]
[1763448819119,0.2021,2982.0,2981.9,1.79725159]
[1763448819433,0.20620773,2982.0,2981.9,1.80300336]
[1763448819729,0.20620773,2982.0,2981.8,0.00503347]
[1763448819730,0.2021,2982.5,2981.8,0.00503347]
[1763448819920,0.2021,2982.5,2982.2,2.81702739]
[1763448820122,0.2021,2982.5,2982.2,4.61986763]
[1763448820321,0.2021,2983.0,2982.4,1.80284024]
[1763448820821,0.21064738,2983.0,2982.4,1.80284024]
[1763448821022,0.21064738,2983.0,2982.6,1.80284024]
[1763448824935,0.21064738,2983.0,2982.6,4.2538521]
[1763448825124,0.1397,2983.5,2982.9,2.45101186]
[1763448825328,0.1397,2983.5,2983.2,2.45101186]
[1763448826037,0.1397,2983.5,2983.2,4.2538521]
[1763448826228,0.1423024,2983.5,2983.2,4.2538521]
[1763448826726,0.1423024,2983.5,2983.2,1.80284024]
[1763448826927,0.1423024,2983.5,2983.1,1.80284024]
[1763448827132,0.3103,2983.2,2982.9,1.80284024]
[1763448827430,0.2021,2983.0,2982.7,2.45101186]
[1763448828132,0.1423024,2983.5,2982.7,4.84734731]
[1763448828334,0.1423024,2983.5,2983.1,2.45101186]
[1763448829031,0.1423024,2983.5,2983.4,2.45101186]
[1763448829231,0.2021,2984.0,2983.4,2.45101186]
[1763448829425,0.2021,2985.0,2983.6,2.39633545]
[1763448829733,0.2021,2984.0,2983.9,2.45101186]
[1763448829933,0.2021,2984.0,2983.9,1.802317]
[1763448830333,0.20459772,2984.0,2983.9,0.00295197]
[1763448832230,0.00335566,2984.2,2983.9,0.00295197]
[1763448832534,0.2021,2984.5,2983.9,4.25628083]
[1763448832739,0.2021,2984.5,2984.2,2.45101186]
[1763448833238,0.20596566,2984.5,2984.2,2.45101186]
[1763448834932,0.2021,2985.0,2984.2,2.45101186]
[1763448835129,0.2021,2985.0,2984.5,2.45101186]
[1763448835533,0.2021,2985.0,2984.5,2.72410697]
[1763448836039,0.20539898,2985.0,2984.5,2.72410697]
[1763448837834,0.20539898,2985.0,2984.5,2.45101186]
[1763448838338,0.22,2984.5,2984.4,0.27496542]
[1763448838544,0.22,2984.5,2984.2,2.45101186]
[1763448839345,0.22,2984.5,2984.2,2.71965531]
[1763448841741,0.22,2984.0,2983.5,1.13448555]
[1763448842043,0.22,2984.0,2983.8,2.45101186]
[1763448842337,0.22,2984.5,2983.8,2.71421892]
[1763448842537,0.22,2984.5,2984.4,2.45101186]
[1763448842742,0.6026,2984.5,2984.1,2.45101186]
[1763448843048,0.6026,2984.5,2983.1,2.96414757]
[1763448843049,0.22,2984.0,2983.8,0.26619346]
[1763448843248,0.3826,2983.9,2983.7,2.45604533]
[1763448843543,0.22,2984.0,2983.7,2.72969135]
[1763448844240,0.22,2984.0,2983.7,2.73347803]
[1763448846243,0.22,2984.5,2983.7,8.73347803]
[1763448846438,0.20539898,2985.0,2984.4,4.90202372]
[1763448846640,0.20539898,2985.0,2984.9,2.45101186]
[1763448848957,0.22,2986.0,2984.9,2.45101186]
[1763448849247,0.5432,2985.9,2985.2,2.45101186]
[1763448849450,0.76319,2986.0,2985.2,2.45101186]
[1763448849842,0.5432,2985.9,2985.2,2.45101186]
[1763448850144,0.20557228,2985.5,2985.2,2.45101186]
[1763448850541,0.22,2986.0,2985.4,2.45101186]
[1763448850739,0.22,2986.5,2985.4,2.45101186]
[1763448850740,0.22,2986.5,2985.9,2.45101186]
[1763448850942,0.22,2986.5,2986.3,2.45101186]
[1763448851542,0.22399123,2986.5,2986.3,2.45507092]
[1763448852249,0.3826,2986.4,2986.3,0.00405906]
[1763448852448,0.22399123,2986.5,2986.3,0.00405906]
[1763448853140,0.22399123,2986.5,2986.3,2.45507092]
[1763448853543,0.3826,2986.4,2986.3,0.00405906]
[1763448854945,0.22399123,2986.5,2986.3,0.00405906]
[1763448855145,0.3826,2986.4,2986.3,2.45507092]
[1763448856653,0.22399123,2986.5,2986.3,2.45507092]
[1763448857051,0.3826,2986.4,2986.3,0.00405906]
[1763448858449,0.22399123,2986.5,2986.3,0.00405906]
[1763448859052,0.3826,2986.4,2986.3,0.00405906]
[1763448859250,0.22399123,2986.5,2986.3,0.00405906]
[1763448859852,0.3692,2986.4,2986.3,0.00405906]
[1763448860553,0.22399123,2986.5,2986.3,0.00405906]
[1763448860956,0.22399123,2986.5,2986.4,2.45101186]
[1763448861254,0.22,2987.0,2986.4,6.09978933]
[1763448861455,0.22,2988.0,2986.9,2.45101186]
[1763448861656,0.22,2988.0,2987.4,2.45101186]
[1763448862051,0.3692,2987.8,2987.7,2.45101186]
[1763448862355,0.223,2987.5,2987.3,2.45101186]
[1763448863254,0.223,2987.0,2986.9,2.45603665]
[1763448863459,0.223,2987.0,2986.9,2.72193561]
[1763448863862,0.223,2987.0,2986.9,2.45603665]
[1763448864064,0.5922,2987.0,2986.9,0.00502479]
[1763448864255,0.5922,2987.0,2986.9,0.27019806]
[1763448864558,0.223,2987.0,2986.9,0.00502479]
[1763448865361,0.223,2987.0,2986.9,0.26802099]
[1763448865955,0.223,2987.0,2986.9,0.00502479]
[1763448866852,0.5922,2987.0,2986.9,0.00502479]
[1763448867462,0.223,2987.0,2986.9,0.00502479]
[1763448868658,0.5936,2987.0,2986.9,0.00502479]
[1763448869174,0.3706,2986.4,2986.3,0.00405906]
[1763448874063,0.3706,2986.2,2986.1,0.00502479]
[1763448875163,0.3706,2986.2,2986.1,0.00901591]
[1763448875462,0.2272,2986.5,2986.1,0.00901591]
[1763448875771,0.3706,2986.4,2986.3,2.45101186]
[1763448876070,0.2272,2986.5,2986.3,2.45101186]
[1763448876463,0.223,2987.0,2986.4,1.19776561]
[1763448876669,0.223,2987.0,2986.7,2.45101186]
[1763448876864,0.3706,2986.8,2986.7,2.45101186]
[1763448877070,0.3706,2986.6,2986.5,1.19776561]
[1763448878172,0.5978,2986.5,2986.4,4.245511]
[1763448879269,0.2272,2986.5,2986.4,4.245511]
[1763448879568,0.2272,2986.5,2986.4,2.45101186]
[1763448881972,0.223,2987.0,2986.4,2.45101186]
[1763448882170,0.223,2987.0,2986.9,2.45101186]
[1763448882869,0.223,2987.0,2986.9,4.25439413]
[1763448883677,0.00252146,2987.8,2986.9,4.25439413]
[1763448883978,0.00252146,2987.8,2987.4,3.65305465]
[1763448884169,0.00252146,2987.8,2987.4,2.45101186]
[1763448884671,0.5936,2987.5,2987.4,2.45101186]
[1763448884870,0.5936,2987.5,2987.3,1.20204279]
[1763448885575,0.22,2988.0,2987.3,3.00542506]
[1763448885770,0.2272,2988.5,2987.9,4.00373867]
[1763448885968,0.5978,2988.5,2988.4,2.80214711]
[1763448886170,0.3706,2988.4,2988.2,0.90101819]
[1763448886674,0.3706,2988.4,2988.3,1.20159156]
[1763448886675,0.00371755,2988.4,2988.3,1.20159156]
[1763448886873,0.2272,2988.5,2988.3,1.20159156]
[1763448887073,0.11526165,2988.5,2988.4,2.80214711]
[1763448887381,0.11526165,2988.5,2988.4,4.00135488]
[1763448888078,0.0033833,2988.5,2988.4,4.60552938]
[1763448888282,0.2272,2989.0,2988.4,2.80214711]
[1763448888485,0.2272,2989.0,2988.9,2.80214711]
[1763448888670,0.5978,2989.0,2988.9,2.80214711]
[1763448889272,0.60188345,2989.0,2988.9,2.80214711]
[1763448891076,0.23128345,2989.0,2988.9,2.80214711]
[1763448891375,0.3706,2988.7,2988.6,0.89851092]
[1763448891576,0.23128345,2989.0,2988.5,0.27114633]
[1763448891577,0.3706,2988.6,2988.5,0.27114633]
[1763448891772,0.23128345,2989.0,2988.4,2.80214711]
[1763448891971,0.23128345,2989.0,2988.8,2.80214711]
[1763448892173,0.3706,2988.9,2988.8,2.80214711]
[1763448894480,0.23128345,2989.0,2988.8,2.80214711]
[1763448894979,0.00408345,2989.0,2988.8,2.80214711]
[1763448895481,0.2272,2989.5,2988.7,0.89851092]
[1763448895684,0.5978,2989.5,2989.4,2.80214711]
[1763448896484,0.60183364,2989.5,2989.4,2.80214711]
[1763448897486,0.23123364,2989.5,2989.0,2.80214711]
[1763448897681,0.3706,2989.1,2989.0,2.80214711]
[1763448898581,0.3706,2989.1,2988.7,2.80214711]
[1763448898886,0.3361,2988.8,2988.7,2.80214711]
[1763448899086,0.3361,2988.8,2988.5,0.26359732]
[1763448899388,0.3361,2988.6,2988.5,2.80214711]
[1763448899589,0.3361,2988.6,2988.5,3.06689164]
[1763448900584,0.2216,2989.0,2988.5,3.06689164]
[1763448901177,0.23123364,2989.5,2988.9,2.80214711]
[1763448901383,0.23123364,2989.5,2989.4,2.80214711]
[1763448901680,0.00403364,2989.5,2989.4,2.80214711]
[1763448901881,0.2216,2991.0,2989.4,15.13252938]
[1763448902081,0.2216,2991.0,2990.2,2.80214711]
[1763448902885,0.22495706,2991.0,2990.7,2.80214711]
[1763448903080,0.22495706,2991.0,2990.7,2.80529795]
[1763448903685,0.3361,2990.8,2990.7,2.80529795]
[1763448903884,0.3361,2990.8,2990.7,0.00315084]
[1763448904285,0.22495706,2991.0,2990.7,0.00315084]
[1763448905381,0.00335706,2991.0,2990.7,0.00315084]
[1763448905585,0.2216,2991.5,2990.8,5.673]
[1763448905784,0.2216,2992.0,2991.4,2.80214711]
[1763448905982,0.2216,2992.0,2991.9,2.80214711]
[1763448906491,0.00373627,2992.0,2991.9,2.80214711]
[1763448907294,0.22533627,2992.0,2991.8,2.80214711]
[1763448907595,0.2216,2994.0,2991.9,13.16054274]
[1763448907783,0.2216,2994.0,2993.9,2.80214711]
[1763448908292,0.2216,2994.0,2993.5,7.86714711]
[1763448908594,0.22460244,2994.0,2993.9,2.80214711]
[1763448908785,0.2216,2995.0,2993.9,2.80214711]
[1763448909012,0.5577,2995.0,2994.9,2.80214711]
[1763448909185,0.2216,2994.5,2994.2,4.74914711]
[1763448909493,0.3361,2994.2,2994.1,0.00501613]
[1763448909893,0.33968346,2994.2,2994.1,0.00501613]
[1763448910094,0.00358346,2994.2,2994.1,0.00501613]
[1763448910592,0.2216,2996.5,2994.1,10.37492528]
[1763448910781,0.2216,2996.5,2995.9,2.80214711]
[1763448911389,0.2216,2997.0,2995.9,8.80214711]
[1763448911593,0.22585511,2997.0,2996.9,2.80214711]
[1763448912186,0.56195511,2997.0,2996.9,2.80214711]
[1763448912685,0.22585511,2997.0,2996.9,2.80214711]
[1763448912886,0.00425511,2997.0,2996.9,2.80214711]
[1763448913486,0.2216,2998.2,2996.9,8.80214711]
[1763448913690,0.2216,2998.2,2997.9,2.80214711]
[1763448913886,0.2216,2998.8,2998.0,5.332]
[1763448914085,0.5577,2998.8,2998.7,2.80214711]
[1763448914285,0.2216,3000.0,2998.7,2.80214711]
[1763448914593,0.22427828,3000.0,2999.6,2.80214711]
[1763448914892,0.00267828,3000.0,2999.1,0.00500676]
[1763448915092,0.00267828,3000.0,2999.6,2.80214711]
[1763448916199,0.2216,2999.5,2998.9,2.80214711]
[1763448916390,0.2216,2999.5,2999.3,2.80214711]
[1763448916696,0.2216,2999.5,2998.7,0.00432353]
[1763448916697,0.2216,2999.5,2998.9,2.80214711]
[1763448916896,0.2216,2999.5,2998.8,3.85439291]
[1763448917103,0.00497144,2999.4,2999.3,3.85439291]
[1763448917787,0.00267828,3000.0,2999.3,9.85439291]
[1763448917983,0.2216,3002.3,2999.9,3.85439291]
[1763448917984,0.54028,3002.0,2999.9,3.85439291]
[1763448918296,0.54028,3002.1,3001.1,3.85439291]
[1763448918591,0.2216,3002.3,3001.1,3.85439291]
[1763448918785,0.2216,3003.0,3001.1,3.85439291]
[1763448918786,0.2216,3003.0,3001.2,3.81532656]
[1763448918991,0.22395645,3003.0,3001.8,3.85439291]
[1763448919204,0.76406645,3003.0,3001.8,3.85439291]
[1763448919494,0.54014,3002.9,3001.8,3.85439291]
[1763448919689,0.22395645,3003.0,3001.8,3.85439291]
[1763448919891,0.188,3001.6,3001.2,0.00310956]
[1763448920092,0.188,3001.6,3001.0,0.00499774]
[1763448920295,0.188,3001.6,3000.4,3.85439291]
[1763448920794,0.54052,3000.7,3000.0,3.85439291]
[1763448921000,0.188,3000.9,3000.0,3.85439291]
[1763448921198,0.00496772,3000.8,3000.5,3.85439291]
[1763448921395,0.00324996,3000.9,3000.5,3.85439291]
[1763448921902,0.19124996,3000.9,3000.5,3.85439291]
[1763448922203,0.188,3000.2,3000.1,0.00499774]
[1763448922593,0.73173996,3000.9,3000.1,0.00499774]
[1763448922793,0.188,3000.2,3000.1,0.00499774]
[1763448923200,0.19124996,3000.9,3000.1,0.00499774]
[1763448923394,0.188,3000.2,3000.1,0.00499774]
[1763448924197,0.54063,3000.1,3000.0,0.00324347]
[1763448924396,0.54063,3000.1,3000.0,4.347e-05]
[1763448924602,0.188,3000.2,2998.8,3.85439291]
[1763448924815,0.54064,3000.1,2998.8,3.85439291]
[1763448924995,0.188,3000.2,2998.8,3.85439291]
[1763448925196,0.00499773,2999.8,2999.3,3.85439291]
[1763448925497,0.00499773,2999.8,2999.3,3.85823564]
[1763448925908,0.188,2999.5,2999.3,0.00384273]
[1763448926101,0.72874,2999.5,2999.3,0.00384273]
[1763448926702,0.188,2999.5,2999.3,0.00384273]
[1763448928500,0.72874,2999.5,2999.3,0.00384273]
[1763448929103,0.188,2999.5,2999.3,0.00384273]
[1763448929801,6.0,2999.4,2997.9,3.85439291]
[1763448930007,0.54079,2999.2,2997.9,3.85439291]
[1763448930212,0.54081,2999.1,2997.9,3.85439291]
[1763448930396,0.1891,2998.8,2997.9,3.85439291]
[1763448930804,0.19187696,2998.8,2998.1,0.00499774]
[1763448931110,0.19187696,2998.8,2998.4,3.85439291]
[1763448931604,0.19187696,2998.8,2998.1,0.00499774]
[1763448931809,0.54094,2998.4,2998.1,0.00499774]
[1763448932002,0.1891,2998.1,2997.9,0.00388794]
[1763448932203,0.1891,2998.1,2997.0,3.85439291]
[1763448932411,0.7301,2998.1,2997.0,3.85439291]
[1763448932606,0.1891,2998.1,2997.0,3.85439291]
[1763448932802,0.1891,2998.1,2996.7,12.49891556]
[1763448932803,0.1891,2998.1,2997.5,3.85439291]
[1763448933010,0.19409774,2998.1,2997.5,3.85939065]
[1763448933310,0.19409774,2998.1,2997.5,3.86296086]
[1763448933707,0.73508774,2998.1,2997.5,3.86296086]
[1763448934208,0.19187696,2998.8,2998.0,3.85439291]
[1763448934404,0.19187696,2998.8,2998.5,3.85439291]
[1763448934808,0.19187696,2998.8,2998.1,3.85439291]
[1763448935208,0.00277696,2998.8,2998.6,3.85439291]
[1763448935409,0.188,2999.5,2998.6,9.85439291]
[1763448935608,0.188,2999.5,2997.9,8.047]
[1763448935909,0.188,2999.5,2997.5,0.00856795]
[1763448935910,0.72874,2999.5,2998.4,3.85439291]
[1763448936105,0.188,2999.5,2998.4,3.85439291]
[1763448936305,0.00499773,2999.2,2998.4,3.85439291]
[1763448936707,0.00499773,2999.2,2997.9,3.85439291]
[1763448936916,0.1891,2998.1,2997.4,3.85439291]
[1763448937605,0.1891,2998.1,2997.1,3.85439291]
[1763448938908,0.1891,2998.1,2997.4,2.78306366]
[1763448939119,0.1891,2998.1,2997.1,2.78306366]
[1763448939623,0.54101,2998.0,2997.1,2.78306366]
[1763448939820,0.1891,2998.1,2997.1,2.78306366]
[1763448940218,0.7301,2998.1,2997.1,2.78306366]
[1763448940422,0.54101,2998.0,2997.1,2.78306366]
[1763448940722,0.1891,2998.1,2997.5,2.79163161]
[1763448942513,0.1891,2998.1,2997.5,0.00856795]
[1763448942719,0.7301,2998.1,2997.5,0.00856795]
[1763448942912,0.54108,2997.6,2997.5,0.00856795]
[1763448943115,0.1891,2997.4,2996.7,2.78306366]
[1763448943727,0.73021,2997.4,2996.7,2.78306366]
[1763448943918,0.1891,2997.4,2996.7,2.78306366]
[1763448944128,0.00499774,2997.3,2996.8,0.00499774]
[1763448946118,0.00499774,2997.3,2997.1,2.78306366]
[1763448946422,0.00499774,2997.3,2996.8,2.7880614]
[1763448946630,0.00499774,2997.3,2996.8,0.00499774]
[1763448946819,0.00499774,2997.3,2996.8,2.43294151]
[1763448948730,0.00499774,2997.3,2996.8,0.00499774]
[1763448948923,0.00499774,2997.3,2996.9,2.42794377]
[1763448949829,0.1891,2998.1,2996.9,2.42794377]
[1763448950128,0.1891,2997.4,2997.3,2.42794377]
[1763448950435,0.1891,2997.4,2997.0,2.42794377]
[1763448950824,0.19254846,2997.4,2997.0,2.42794377]
[1763448951932,0.19254846,2997.4,2996.8,2.43294151]
[1763448952127,0.54113,2997.3,2996.8,2.43294151]
[1763448952335,0.19254846,2997.4,2996.8,2.43294151]
[1763448952835,0.19254846,2997.4,2996.8,0.00499774]
[1763448953031,0.19254846,2997.4,2995.9,2.42794377]
[1763448953226,0.1891,2996.0,2995.7,2.42794377]
[1763448953427,0.1891,2996.7,2995.7,2.42794377]
[1763448953624,0.1891,2996.7,2996.1,2.42794377]
[1763448954130,0.1891,2996.7,2996.1,2.43699083]
[1763448956027,0.73035,2996.7,2996.1,2.43699083]
[1763448956223,0.54126,2996.6,2996.1,2.43699083]
[1763448956430,0.1891,2996.7,2996.1,2.43699083]
[1763448956637,0.54126,2996.6,2996.1,2.43699083]
[1763448957039,0.1891,2996.7,2996.1,2.43699083]
[1763448959031,0.19254846,2997.4,2996.5,2.42794377]
[1763448959230,0.19254846,2997.4,2997.0,2.42794377]
[1763448962140,0.19254846,2997.4,2997.1,0.89106516]
[1763448962141,0.00344846,2997.4,2997.1,0.89106516]
[1763448962524,0.1891,2998.1,2997.1,0.89106516]
[1763448962838,0.1891,2998.8,2998.0,2.42794377]
[1763448963034,0.1891,2998.8,2998.4,2.42794377]
[1763448963230,0.1858,2999.4,2998.4,3.31900893]
[1763448963437,0.1858,2999.4,2999.3,2.42794377]
[1763448963637,0.18900373,2999.4,2999.3,2.43105892]
[1763448964133,0.18900373,2999.4,2998.4,1.80338227]
[1763448964134,0.1858,2998.8,2998.3,0.89106516]
[1763448964326,0.1858,2998.8,2997.8,3.31900893]
[1763448964932,0.1858,2998.1,2997.5,0.89106516]
[1763448965131,0.54102,2998.0,2997.6,0.00377649]
[1763448965527,0.541,2998.0,2997.6,0.00377649]
[1763448965837,0.54101,2998.0,2997.6,0.00377649]
[1763448966031,0.54103,2997.9,2997.6,0.00377649]
[1763448966231,0.19080692,2998.1,2997.6,0.00377649]
[1763448966232,0.54101,2998.0,2997.6,0.00377649]
[1763448966434,0.19080692,2998.1,2997.6,0.00377649]
[1763448966634,0.54105,2997.8,2997.5,0.00500692]
[1763448966941,0.19080692,2998.1,2997.5,0.00500692]
[1763448967429,0.73179692,2998.1,2997.5,0.00500692]
[1763448967630,0.19080692,2998.1,2997.5,0.00808651]
[1763448967835,0.54103,2997.9,2997.5,0.00808651]
[1763448968026,0.19080692,2998.1,2997.5,0.00808651]
[1763448968227,0.19080692,2998.1,2997.8,3.18818588]
[1763448968433,0.1858,2998.8,2997.8,4.07925104]
[1763448969036,0.1858,2998.8,2997.9,0.89106516]
[1763448969430,0.00500692,2998.6,2997.8,0.89106516]
[1763448969631,0.54097,2998.2,2997.8,0.89106516]
[1763448969833,0.1858,2998.1,2997.5,0.89915167]
[1763448971033,0.1858,2998.1,2997.5,0.00808651]
[1763448973140,0.54590692,2998.6,2997.5,0.89915167]
[1763448973344,0.54092,2998.5,2997.5,0.89915167]
[1763448973548,0.54093,2998.4,2997.5,0.89915167]
[1763448973743,0.1858,2998.1,2997.5,0.00808651]
[1763448975644,0.54104,2997.9,2997.5,0.00808651]
[1763448975943,0.54114,2997.3,2997.1,0.89106516]
[1763448976150,0.1858,2997.4,2996.7,0.89106516]
[1763448976344,0.1858,2996.7,2996.6,0.89106516]
[1763448976545,0.1858,2996.7,2996.3,0.89106516]
[1763448976739,0.1858,2996.7,2996.1,0.89106516]
[1763448977243,0.73453092,2996.7,2996.1,0.00926389]
[1763448977749,0.19329092,2996.7,2996.1,0.00926389]
[1763448979339,0.19329092,2996.7,2996.1,3.19744977]
[1763448979543,0.19329092,2996.7,2996.1,4.08851493]
[1763448980279,0.19329092,2996.7,2996.1,0.90032905]
[1763448981452,0.19329092,2996.7,2996.1,0.00926389]
[1763448981653,0.19329092,2996.7,2996.1,4.08851493]
[1763448981848,0.00749092,2996.7,2996.5,3.18818588]
[1763448982053,0.1858,2997.4,2996.5,3.18818588]
[1763448982251,0.1858,2997.4,2996.9,3.18818588]
[1763448982550,0.1858,2997.4,2996.9,4.07925104]
[1763448983249,0.1939073,2997.4,2996.9,4.07925104]
[1763448983754,0.1939073,2997.4,2996.9,0.89106516]
[1763448984449,0.54113,2997.3,2996.7,0.89106516]
[1763448984747,0.54113,2997.3,2996.5,0.89106516]
[1763448985052,0.1939073,2997.4,2996.5,0.89106516]